{"text_format":"1","workbook":"xlsx","n_sheets":2,"sheets":["Valutaomvandlingar","Valutakurser"],"not_rendered":{"charts":0,"images":1,"macros":1,"external_links":0,"defined_names":7,"comments":0,"pivot_tables":0},"unopened":[],"bounds":{"document_bytes":16777216,"sheet_cells":100000,"rows_first":2000,"rows_last":500,"rows_between":2000,"halvings":0,"cell_chars":16384,"cell_head_chars":4096},"cells_cut":0,"cells_raw":0,"read":"whole","date_system":"1900"}

{"sheet":"Valutaomvandlingar","index":0,"n_rows":10,"n_cols":5,"rows_kept":10,"cut":false,"hidden":false,"merged":[]}
[]
[]
[]
[]
[null,null,null,41,6000]
[]
[]
[]
[]
[null,null,null,27,{"$f":"IFERROR(IF(OR(FromCurrency=0,ToCurrency=0),\"\",FromAmount/OFFSET(Valutor,FromCurrency-1,3,1,1)*OFFSET(Valutor,ToCurrency-1,3,1,1)),\"\")","v":36138}]

{"sheet":"Valutakurser","index":1,"n_rows":59,"n_cols":5,"rows_kept":59,"cut":false,"hidden":false,"merged":[]}
["Valutakurser"]
["Informationen på det här bladet kommer från en webbfråga för MSN Money. Den uppdateras när du klickar på knappen Uppdatera valutakurser på bladet Valutaomvandlingar."]
[null,null,"Currency Rates Provided by MSN Money"]
[null,null,"Click here to visit MSN Money"]
[]
[null,"Listnamn","Namn","I SEK","   Per SEK"]
[null,{"$f":"IF(ISERROR(FIND(\" till US-dollar\",C7)),C7,LEFT(C7,FIND(\" till US-dollar\",C7)-1))","v":"Argentinsk peso"},"Argentinsk peso till US-dollar",0.22361,4.4720000000000004]
[null,{"$f":"IF(ISERROR(FIND(\" till US-dollar\",C8)),C8,LEFT(C8,FIND(\" till US-dollar\",C8)-1))","v":"Australisk dollar"},"Australisk dollar till US-dollar",0.97838000000000003,1.022]
[null,"Bahrainsk dinar","Bahrainsk dinar till US-dollar",2.6488,0.378]
[null,"Boliviansk boliviano","Boliviansk boliviano till US-dollar",0.14451,6.92]
[null,"Brasiliansk real","Brasiliansk real till US-dollar",0.49147000000000002,2.0350000000000001]
[null,"Brittiskt pund","Brittiskt pund till US-dollar",1.5676000000000001,0.63800000000000001]
[null,"Kanadensisk dollar","Kanadensisk dollar till US-dollar",0.97492000000000001,1.026]
[null,"Chilensk peso","Chilensk peso till US-dollar",1.9599999999999999E-3,509.4]
[null,"Kinesisk yuan","Kinesisk yuan till US-dollar",0.15740000000000001,6.3529999999999998]
[null,"Colombiansk peso","Colombiansk peso till US-dollar",5.4000000000000001E-4,1847]
[null,"Tjeckisk krona","Tjeckisk krona till US-dollar",4.9480000000000003E-2,20.209]
[null,"Dansk krona","Dansk krona till US-dollar",0.16913,5.9130000000000003]
[null,"Euro","Euro till US-dollar",1.2565999999999999,0.79600000000000004]
[null,"Egyptiskt pund*","Egyptiskt pund* till US-dollar",0.16553000000000001,6.0410000000000004]
[null,"Hongkongdollar","Hongkongdollar till US-dollar",0.12881999999999999,7.7629999999999999]
[null,"Ungersk forint","Ungersk forint till US-dollar",4.1900000000000001E-3,238.7]
[null,"Indisk rupee","Indisk rupee till US-dollar",1.8030000000000001E-2,55.46]
[null,"Indonesisk rupiah","Indonesisk rupiah till US-dollar",1.1E-4,9318]
[null,"Japansk yen","Japansk yen till US-dollar",1.256E-2,79.63]
[null,"Jordansk dinar","Jordansk dinar till US-dollar",1.4075,0.71099999999999997]
[null,"Kenyansk shilling","Kenyansk shilling till US-dollar",1.171E-2,85.4]
[null,"Sydkoreansk won","Sydkoreansk won till US-dollar",8.4999999999999995E-4,1183]
[null,"Kuwaitisk dinar","Kuwaitisk dinar till US-dollar",3.5663,0.28000000000000003]
[null,"Marockansk dirham","Marockansk dirham till US-dollar",0.11362,8.8019999999999996]
[null,"Malaysisk ringgit","Malaysisk ringgit till US-dollar",0.31635999999999997,3.161]
[null,"Mexikansk peso","Mexikansk peso till US-dollar",7.1480000000000002E-2,13.99]
[null,"Norsk krona","Norsk krona till US-dollar",0.16603000000000001,6.0229999999999997]
[null,"Omansk rial","Omansk rial till US-dollar",2.5988000000000002,0.38500000000000001]
[null,"Peruansk nuevo sol","Peruansk nuevo sol till US-dollar",0.36981999999999998,2.7040000000000002]
[null,"Filippinsk peso","Filippinsk peso till US-dollar",2.282E-2,43.83]
[null,"Pakistansk rupee","Pakistansk rupee till US-dollar",1.0840000000000001E-2,92.24]
[null,"Saudiarabisk rial","Saudiarabisk rial till US-dollar",0.26661000000000001,3.7509999999999999]
[null,"Singaporiansk dollar","Singaporiansk dollar till US-dollar",0.78134999999999999,1.28]
[null,"Sydafrikansk rand","Sydafrikansk rand till US-dollar",0.11992,8.3390000000000004]
[null,"Svensk krona","Svensk krona till US-dollar",0.13947999999999999,7.17]
[null,"Schweizisk franc","Schweizisk franc till US-dollar",1.0454000000000001,0.95699999999999996]
[null,"Taiwanesisk dollar","Taiwanesisk dollar till US-dollar",3.3750000000000002E-2,29.631]
[null,"Thailändsk baht","Thailändsk baht till US-dollar",3.1530000000000002E-2,31.72]
[null,"Tunisisk dinar","Tunisisk dinar till US-dollar",0.62375000000000003,1.603]
[null,"Emiratisk dirham","Emiratisk dirham till US-dollar",0.27221000000000001,3.6739999999999999]
[null,"US-dollar","US-dollar",1,1]
[null,"Venezuelansk bolivar","Venezuelansk bolivar till US-dollar",0.23258999999999999,4.3]
[]
[]
[]
[null,null,"MSN Money",null,"Microsoft Office Update"]
[null,null,"Hitta verktyg för investerare, krönika och mycket annat.",null,"Hämta det senaste från Microsoft Office"]
[null,null,"Sekretess"]
[null,null,"Juridisk information"]
[null,null,"Annonsera"]
[null,null,"MSN Worldwide"]
[null,null,"Om våra annonser"]
[null,null,"© 2012 Microsoft "]